[Event "*** Titled Tuesday Blitz"]
[Site "Chess.com"]
[Date "2021.04.20"]
[Round "8"]
[White "azikom"]
[Black "RiskyDecision"]
[Result "1/2-1/2"]
[WhiteElo "2629"]
[BlackElo "2466"]
[TimeControl "180+1"]
[EndTime "11:28:12 PDT"]
[Termination "Game drawn - insufficient material"]

1. d4 {[%clk 0:03:00.8]} 1... f5 {[%clk 0:02:56.8]} 2. c4 {[%clk 0:03:00.5]}
2... Nf6 {[%clk 0:02:55.4]} 3. Nc3 {[%clk 0:03:00.9]} 3... d6 {[%clk 0:02:55.4]}
4. Nf3 {[%clk 0:03:00.2]} 4... g6 {[%clk 0:02:55.4]} 5. g3 {[%clk 0:03:00.7]}
5... Bg7 {[%clk 0:02:55.8]} 6. Bg2 {[%clk 0:03:01.4]} 6... O-O {[%clk
0:02:56.5]} 7. O-O {[%clk 0:03:02.1]} 7... c6 {[%clk 0:02:57.1]} 8. d5 {[%clk
0:03:01.7]} 8... e5 {[%clk 0:02:56.9]} 9. dxe6 {[%clk 0:03:01.2]} 9... Bxe6
{[%clk 0:02:57.4]} 10. Qd3 {[%clk 0:03:01.2]} 10... Re8 {[%clk 0:02:56.9]} 11.
b3 {[%clk 0:03:00.9]} 11... Na6 {[%clk 0:02:52.9]} 12. Bb2 {[%clk 0:03:00.8]}
12... Nc5 {[%clk 0:02:51.8]} 13. Qc2 {[%clk 0:03:01.2]} 13... Qe7 {[%clk
0:02:46.5]} 14. e3 {[%clk 0:03:00.9]} 14... Rad8 {[%clk 0:02:43.2]} 15. Rfd1
{[%clk 0:02:59]} 15... h6 {[%clk 0:02:40.7]} 16. Rac1 {[%clk 0:02:57.8]} 16...
Bf7 {[%clk 0:02:36.4]} 17. Ne2 {[%clk 0:02:53.3]} 17... Nce4 {[%clk 0:02:34.4]}
18. Nf4 {[%clk 0:02:48.1]} 18... g5 {[%clk 0:02:30.5]} 19. Nd3 {[%clk
0:02:47.9]} 19... Bg6 {[%clk 0:02:25.6]} 20. Re1 {[%clk 0:02:47.9]} 20... d5
{[%clk 0:02:18.5]} 21. cxd5 {[%clk 0:02:46.7]} 21... Nxd5 {[%clk 0:02:19.4]} 22.
Bxg7 {[%clk 0:02:45.8]} 22... Qxg7 {[%clk 0:02:20.2]} 23. b4 {[%clk 0:02:32.9]}
23... f4 {[%clk 0:02:09.8]} 24. exf4 {[%clk 0:02:32.4]} 24... gxf4 {[%clk
0:01:59.4]} 25. Qb3 {[%clk 0:02:31.9]} 25... fxg3 {[%clk 0:01:53.1]} 26. hxg3
{[%clk 0:02:29.5]} 26... Kh8 {[%clk 0:01:45]} 27. Nc5 {[%clk 0:02:28.3]} 27...
Nxc5 {[%clk 0:01:37.8]} 28. bxc5 {[%clk 0:02:27.9]} 28... Rxe1+ {[%clk
0:01:24.4]} 29. Rxe1 {[%clk 0:02:27.1]} 29... Nc3 {[%clk 0:01:14.6]} 30. Ne5
{[%clk 0:02:21.8]} 30... Nd5 {[%clk 0:01:00.5]} 31. Nxg6+ {[%clk 0:02:19.4]}
31... Qxg6 {[%clk 0:01:01.4]} 32. Qxb7 {[%clk 0:02:19.9]} 32... Nf4 {[%clk
0:00:50.1]} 33. Qxc6 {[%clk 0:02:04.9]} 33... Nh3+ {[%clk 0:00:38.6]} 34. Kh2
{[%clk 0:01:54.4]} 34... Qxc6 {[%clk 0:00:38.9]} 35. Bxc6 {[%clk 0:01:53.7]}
35... Nxf2 {[%clk 0:00:39.8]} 36. Re8+ {[%clk 0:01:53]} 36... Rxe8 {[%clk
0:00:39.9]} 37. Bxe8 {[%clk 0:01:51.1]} 37... Ng4+ {[%clk 0:00:26.5]} 38. Kh3
{[%clk 0:01:48]} 38... Nf6 {[%clk 0:00:27.4]} 39. Bf7 {[%clk 0:01:35.9]} 39...
Ne4 {[%clk 0:00:23.5]} 40. c6 {[%clk 0:00:58.2]} 40... Ng5+ {[%clk 0:00:21.4]}
41. Kg4 {[%clk 0:00:58.4]} 41... Nxf7 {[%clk 0:00:22.3]} 42. c7 {[%clk
0:00:57.9]} 42... Nd6 {[%clk 0:00:21.8]} 43. Kf4 {[%clk 0:00:57.2]} 43... Kg7
{[%clk 0:00:19.9]} 44. Ke5 {[%clk 0:00:55.9]} 44... Nc8 {[%clk 0:00:20.3]} 45.
Ke6 {[%clk 0:00:55.2]} 45... Kg6 {[%clk 0:00:16.1]} 46. a4 {[%clk 0:00:53.1]}
46... a5 {[%clk 0:00:15.7]} 47. Kd7 {[%clk 0:00:46.6]} 47... Nb6+ {[%clk
0:00:16.1]} 48. Kc6 {[%clk 0:00:46.6]} 48... Nc8 {[%clk 0:00:16.8]} 49. Kb7
{[%clk 0:00:30.1]} 49... Nd6+ {[%clk 0:00:16.8]} 50. Kb6 {[%clk 0:00:28.8]}
50... Kg5 {[%clk 0:00:14.3]} 51. Kxa5 {[%clk 0:00:28.4]} 51... Kg4 {[%clk
0:00:14.5]} 52. Kb4 {[%clk 0:00:25.1]} 52... Kxg3 {[%clk 0:00:14.6]} 53. a5
{[%clk 0:00:25.1]} 53... h5 {[%clk 0:00:14.8]} 54. a6 {[%clk 0:00:24.7]} 54...
Nc8 {[%clk 0:00:14.7]} 55. Kb5 {[%clk 0:00:23.3]} 55... h4 {[%clk 0:00:14.7]}
56. Kc6 {[%clk 0:00:23.1]} 56... h3 {[%clk 0:00:14.7]} 57. Kb7 {[%clk
0:00:23.5]} 57... Nd6+ {[%clk 0:00:09.6]} 58. Kb8 {[%clk 0:00:23]} 58... h2
{[%clk 0:00:09.3]} 59. a7 {[%clk 0:00:23]} 59... h1=Q {[%clk 0:00:09.2]} 60.
a8=Q {[%clk 0:00:23.2]} 60... Qxa8+ {[%clk 0:00:09.8]} 61. Kxa8 {[%clk
0:00:23.2]} 61... Kf4 {[%clk 0:00:10]} 62. Ka7 {[%clk 0:00:23.5]} 62... Nb5+
{[%clk 0:00:09.8]} 63. Ka6 {[%clk 0:00:21.2]} 63... Nxc7+ {[%clk 0:00:10.7]}
1/2-1/2

[Event "*** Titled Tuesday Blitz"]
[Site "Chess.com"]
[Date "2021.04.20"]
[Round "8"]
[White "Raud100"]
[Black "ChampStan"]
[Result "1-0"]
[WhiteElo "2381"]
[BlackElo "2099"]
[TimeControl "180+1"]
[EndTime "11:28:12 PDT"]
[Termination "Raud100 won by resignation"]

1. d4 {[%clk 0:03:00.9]} 1... Nf6 {[%clk 0:02:57.5]} 2. c4 {[%clk 0:03:00.2]}
2... g6 {[%clk 0:02:56.8]} 3. Nc3 {[%clk 0:02:59]} 3... d5 {[%clk 0:02:57.2]} 4.
cxd5 {[%clk 0:02:59.9]} 4... Nxd5 {[%clk 0:02:57.4]} 5. e4 {[%clk 0:03:00.8]}
5... Nxc3 {[%clk 0:02:57.5]} 6. bxc3 {[%clk 0:03:01.7]} 6... Bg7 {[%clk
0:02:58]} 7. Be3 {[%clk 0:03:02.6]} 7... O-O {[%clk 0:02:58.4]} 8. Qd2 {[%clk
0:03:03.5]} 8... c5 {[%clk 0:02:58.8]} 9. Nf3 {[%clk 0:03:00.1]} 9... Qa5 {[%clk
0:02:46.8]} 10. Rc1 {[%clk 0:02:58.6]} 10... cxd4 {[%clk 0:02:11.9]} 11. cxd4
{[%clk 0:02:59.5]} 11... Qxd2+ {[%clk 0:02:12.2]} 12. Bxd2 {[%clk 0:02:54.1]}
12... Rd8 {[%clk 0:01:42.6]} 13. d5 {[%clk 0:02:51.5]} 13... e6 {[%clk
0:01:40.6]} 14. Bc4 {[%clk 0:02:50.7]} 14... Na6 {[%clk 0:01:21.2]} 15. Ke2
{[%clk 0:02:45.8]} 15... Nc5 {[%clk 0:01:19.1]} 16. Bg5 {[%clk 0:02:32.7]} 16...
f6 {[%clk 0:01:16.4]} 17. dxe6 {[%clk 0:02:29.3]} 17... Bxe6 {[%clk 0:01:12.3]}
18. Bxe6+ {[%clk 0:02:27.7]} 18... Nxe6 {[%clk 0:01:13.2]} 19. Be3 {[%clk
0:02:27.5]} 19... Rac8 {[%clk 0:01:06.2]} 20. Rhd1 {[%clk 0:02:23.5]} 20... Rxc1
{[%clk 0:00:56.7]} 21. Rxc1 {[%clk 0:02:22.6]} 21... f5 {[%clk 0:00:51.8]} 22.
exf5 {[%clk 0:02:19.5]} 22... gxf5 {[%clk 0:00:52.7]} 23. g3 {[%clk 0:02:02]}
23... Bf6 {[%clk 0:00:48.9]} 24. a4 {[%clk 0:01:50.1]} 24... Kf7 {[%clk
0:00:44.2]} 25. a5 {[%clk 0:01:47]} 25... Rd5 {[%clk 0:00:43.8]} 26. Bxa7 {[%clk
0:01:32.3]} 26... Rxa5 {[%clk 0:00:43.4]} 27. Be3 {[%clk 0:01:32.4]} 27... Ra2+
{[%clk 0:00:40.1]} 28. Kd3 {[%clk 0:01:32.4]} 28... b5 {[%clk 0:00:39.4]} 29.
Rc6 {[%clk 0:01:29.7]} 29... Ra3+ {[%clk 0:00:25.5]} 30. Kc2 {[%clk 0:01:26.1]}
30... b4 {[%clk 0:00:23.1]} 31. Rb6 {[%clk 0:01:24.1]} 31... Rc3+ {[%clk
0:00:23.2]} 32. Kd2 {[%clk 0:01:22.4]} 32... b3 {[%clk 0:00:21]} 33. Ne1 {[%clk
0:01:10.1]} 33... h5 {[%clk 0:00:11.4]} 34. h4 {[%clk 0:01:09.6]} 34... Ke7
{[%clk 0:00:10.6]} 35. Bg5 {[%clk 0:01:03.7]} 35... Nxg5 {[%clk 0:00:05.3]} 36.
hxg5 {[%clk 0:00:55.7]} 36... Bd4 {[%clk 0:00:05.1]} 37. Nd3 {[%clk 0:00:42.5]}
37... Rc2+ {[%clk 0:00:04]} 38. Kd1 {[%clk 0:00:42.2]} 38... Bxf2 {[%clk
0:00:02.6]} 39. Rxb3 {[%clk 0:00:40.9]} 39... Ra2 {[%clk 0:00:02.7]} 40. Nf4
{[%clk 0:00:36.9]} 40... Bd4 {[%clk 0:00:02.2]} 41. Nxh5 {[%clk 0:00:35.3]}
41... Rh2 {[%clk 0:00:02.2]} 42. Nf4 {[%clk 0:00:34.9]} 42... Rh1+ {[%clk
0:00:02.6]} 43. Ke2 {[%clk 0:00:34.5]} 43... Be5 {[%clk 0:00:03.3]} 44. Re3
{[%clk 0:00:32.6]} 44... Kd6 {[%clk 0:00:03.7]} 45. Kf3 {[%clk 0:00:31.8]} 45...
Rf1+ {[%clk 0:00:02.4]} 46. Kg2 {[%clk 0:00:30.1]} 46... Rb1 {[%clk 0:00:01.9]}
47. Rd3+ {[%clk 0:00:28.2]} 47... Kc6 {[%clk 0:00:01.4]} 48. Rf3 {[%clk
0:00:26.9]} 48... Rb2+ {[%clk 0:00:02.3]} 49. Kh3 {[%clk 0:00:26.9]} 49... Kd6
{[%clk 0:00:02.5]} 50. Nd3 {[%clk 0:00:25.2]} 50... Rb1 {[%clk 0:00:02.9]} 51.
Rxf5 {[%clk 0:00:22.7]} 51... Bd4 {[%clk 0:00:01.7]} 52. g4 {[%clk 0:00:20.4]}
52... Rb3 {[%clk 0:00:01.7]} 53. Rf3 {[%clk 0:00:19.8]} 53... Kd5 {[%clk
0:00:01.8]} 54. Nf4+ {[%clk 0:00:19.6]} 54... Kc4 {[%clk 0:00:02.3]} 55. Rxb3
{[%clk 0:00:19.2]} 55... Kxb3 {[%clk 0:00:03.2]} 56. Kh4 {[%clk 0:00:19.8]}
56... Kc4 {[%clk 0:00:02.7]} 57. Kh5 {[%clk 0:00:18.9]} 57... Kc5 {[%clk
0:00:03.1]} 58. Kg6 {[%clk 0:00:19]} 58... Kd6 {[%clk 0:00:03.4]} 59. Kf7 {[%clk
0:00:19.4]} 59... Ke5 {[%clk 0:00:02.9]} 60. Ne6 {[%clk 0:00:17.9]} 60... Be3
{[%clk 0:00:02.7]} 61. g6 {[%clk 0:00:17.8]} 61... Bh6 {[%clk 0:00:03.3]} 62. g5
{[%clk 0:00:18.2]} 62... Bxg5 {[%clk 0:00:01.5]} 63. Nxg5 {[%clk 0:00:17.7]}
63... Kf5 {[%clk 0:00:01.5]} 64. Ne6 {[%clk 0:00:18.6]} 1-0

[Event "*** Titled Tuesday Blitz"]
[Site "Chess.com"]
[Date "2021.04.20"]
[Round "8"]
[White "chessdjw"]
[Black "RzayevB"]
[Result "1/2-1/2"]
[WhiteElo "2742"]
[BlackElo "2627"]
[TimeControl "180+1"]
[EndTime "11:28:16 PDT"]
[Termination "Game drawn by repetition"]

1. e4 {[%clk 0:03:00.9]} 1... c5 {[%clk 0:02:59.3]} 2. Nf3 {[%clk 0:03:00.7]}
2... Nc6 {[%clk 0:02:59.5]} 3. Bb5 {[%clk 0:03:00.3]} 3... d6 {[%clk 0:02:56]}
4. O-O {[%clk 0:02:58.2]} 4... Bd7 {[%clk 0:02:55.4]} 5. Re1 {[%clk 0:02:58.3]}
5... Nf6 {[%clk 0:02:53.7]} 6. c3 {[%clk 0:02:57.2]} 6... a6 {[%clk 0:02:52.9]}
7. Bxc6 {[%clk 0:02:57.8]} 7... Bxc6 {[%clk 0:02:52.8]} 8. d4 {[%clk 0:02:58.4]}
8... cxd4 {[%clk 0:02:52]} 9. cxd4 {[%clk 0:02:57.8]} 9... Bxe4 {[%clk
0:02:49.2]} 10. Nc3 {[%clk 0:02:57.3]} 10... d5 {[%clk 0:02:29.9]} 11. Bg5
{[%clk 0:02:51.8]} 11... e6 {[%clk 0:02:08.2]} 12. Nxe4 {[%clk 0:02:50]} 12...
dxe4 {[%clk 0:02:07.6]} 13. Rxe4 {[%clk 0:02:49]} 13... Be7 {[%clk 0:02:07]} 14.
Bxf6 {[%clk 0:02:48.6]} 14... Bxf6 {[%clk 0:02:07.2]} 15. Qb3 {[%clk 0:02:46.6]}
15... O-O {[%clk 0:01:55.8]} 16. Qxb7 {[%clk 0:02:45.7]} 16... Rb8 {[%clk
0:01:53.8]} 17. Qxa6 {[%clk 0:02:45.7]} 17... Rxb2 {[%clk 0:01:52.5]} 18. a4
{[%clk 0:02:44.4]} 18... Qd5 {[%clk 0:01:48.5]} 19. Qd3 {[%clk 0:02:15.9]} 19...
Ra8 {[%clk 0:01:46.9]} 20. Ree1 {[%clk 0:01:46.7]} 20... Rb4 {[%clk 0:01:33.7]}
21. Reb1 {[%clk 0:01:40.4]} 21... Bxd4 {[%clk 0:01:30.1]} 22. Nxd4 {[%clk
0:01:09.3]} 22... Rxd4 {[%clk 0:01:29.2]} 23. Qg3 {[%clk 0:01:07.4]} 23... h5
{[%clk 0:01:21.8]} 24. h3 {[%clk 0:00:41.3]} 24... Raxa4 {[%clk 0:01:15.3]} 25.
Rxa4 {[%clk 0:00:40.8]} 25... Rxa4 {[%clk 0:01:16.1]} 26. Qb8+ {[%clk
0:00:39.8]} 26... Kh7 {[%clk 0:01:14.8]} 27. Rb5 {[%clk 0:00:40.4]} 27... Qd1+
{[%clk 0:01:06.1]} 28. Kh2 {[%clk 0:00:40.2]} 28... f6 {[%clk 0:00:41.4]} 29. f3
{[%clk 0:00:20.7]} 29... e5 {[%clk 0:00:30.7]} 30. Qe8 {[%clk 0:00:21.1]} 30...
Rh4 {[%clk 0:00:19.9]} 31. Rb7 {[%clk 0:00:17.3]} 31... Qd2 {[%clk 0:00:10.2]}
32. Rd7 {[%clk 0:00:13.4]} 32... Qg5 {[%clk 0:00:06.5]} 33. Rd8 {[%clk
0:00:10.8]} 33... Rd4 {[%clk 0:00:05.7]} 34. Rxd4 {[%clk 0:00:07.7]} 34... exd4
{[%clk 0:00:02.4]} 35. Qe4+ {[%clk 0:00:08.3]} 35... g6 {[%clk 0:00:02.9]} 36.
Qxd4 {[%clk 0:00:08.8]} 36... h4 {[%clk 0:00:03.5]} 37. Qd7+ {[%clk 0:00:08.3]}
37... Kh6 {[%clk 0:00:03.8]} 38. Qd1 {[%clk 0:00:07.4]} 38... Qg3+ {[%clk
0:00:04]} 39. Kg1 {[%clk 0:00:07.7]} 39... f5 {[%clk 0:00:04.6]} 40. Kf1 {[%clk
0:00:08.1]} 40... Qh2 {[%clk 0:00:04.8]} 41. Qd2+ {[%clk 0:00:06]} 41... f4
{[%clk 0:00:04.4]} 42. Qd4 {[%clk 0:00:05.7]} 42... Qg3 {[%clk 0:00:03.2]} 43.
Qh8+ {[%clk 0:00:05.4]} 43... Kg5 {[%clk 0:00:03.7]} 44. Qe5+ {[%clk 0:00:05.9]}
44... Kh6 {[%clk 0:00:04.2]} 45. Qb8 {[%clk 0:00:06.1]} 45... Kg5 {[%clk
0:00:02.6]} 46. Qd8+ {[%clk 0:00:06.1]} 46... Kf5 {[%clk 0:00:02.2]} 47. Qf8+
{[%clk 0:00:05.7]} 47... Kg5 {[%clk 0:00:02.4]} 48. Qe7+ {[%clk 0:00:06]} 48...
Kh6 {[%clk 0:00:02.7]} 49. Qd8 {[%clk 0:00:06.2]} 49... Kh5 {[%clk 0:00:02.7]}
50. Qf6 {[%clk 0:00:05.9]} 50... Kh6 {[%clk 0:00:03.1]} 51. Qe7 {[%clk
0:00:05.9]} 51... Kh5 {[%clk 0:00:03.6]} 52. Kg1 {[%clk 0:00:06.3]} 52... Kh6
{[%clk 0:00:04]} 53. Kf1 {[%clk 0:00:06.2]} 53... Kh5 {[%clk 0:00:04.5]} 54. Qe6
{[%clk 0:00:06.4]} 54... Kh6 {[%clk 0:00:04.9]} 55. Qg4 {[%clk 0:00:06.8]} 55...
Qxg4 {[%clk 0:00:04.7]} 56. fxg4 {[%clk 0:00:06.8]} 56... g5 {[%clk 0:00:05.3]}
57. Ke2 {[%clk 0:00:06.8]} 57... Kg6 {[%clk 0:00:06]} 58. Kd3 {[%clk 0:00:07.1]}
58... Kf7 {[%clk 0:00:05.6]} 59. Kc4 {[%clk 0:00:06.9]} 59... Ke6 {[%clk
0:00:04.8]} 60. Kd4 {[%clk 0:00:07.3]} 60... Kd6 {[%clk 0:00:05.3]} 61. Ke4
{[%clk 0:00:07.8]} 61... Ke6 {[%clk 0:00:05.8]} 62. Kd4 {[%clk 0:00:08.3]} 62...
Kd6 {[%clk 0:00:06]} 63. Ke4 {[%clk 0:00:08.7]} 63... Ke6 {[%clk 0:00:06.7]} 64.
Kd4 {[%clk 0:00:09.3]} 1/2-1/2

[Event "*** Titled Tuesday Blitz"]
[Site "Chess.com"]
[Date "2021.04.20"]
[Round "8"]
[White "Kale36"]
[Black "Koalaskakistis"]
[Result "0-1"]
[WhiteElo "2318"]
[BlackElo "2555"]
[TimeControl "180+1"]
[EndTime "11:28:19 PDT"]
[Termination "Koalaskakistis won on time"]

1. b3 {[%clk 0:03:00.9]} 1... f5 {[%clk 0:02:46.5]} 2. Bb2 {[%clk 0:02:58]} 2...
Nc6 {[%clk 0:02:46.8]} 3. Nf3 {[%clk 0:02:51.5]} 3... Nf6 {[%clk 0:02:40.1]} 4.
e3 {[%clk 0:02:51.4]} 4... g6 {[%clk 0:02:37.5]} 5. Bxf6 {[%clk 0:02:46.5]} 5...
exf6 {[%clk 0:02:38.4]} 6. c4 {[%clk 0:02:46.9]} 6... d5 {[%clk 0:02:34.7]} 7.
cxd5 {[%clk 0:02:46.2]} 7... Qxd5 {[%clk 0:02:35.6]} 8. Nc3 {[%clk 0:02:46.2]}
8... Qa5 {[%clk 0:02:34.8]} 9. a3 {[%clk 0:02:45]} 9... Qc5 {[%clk 0:02:28.6]}
10. b4 {[%clk 0:02:40.2]} 10... Qe7 {[%clk 0:02:28.2]} 11. Nd5 {[%clk 0:02:37]}
11... Qg7 {[%clk 0:02:22.3]} 12. b5 {[%clk 0:02:24.7]} 12... Ne5 {[%clk
0:02:13.7]} 13. Qc2 {[%clk 0:01:53.7]} 13... Bd6 {[%clk 0:02:09]} 14. Rc1 {[%clk
0:01:53.5]} 14... O-O {[%clk 0:01:48.9]} 15. Nxc7 {[%clk 0:01:42.2]} 15... Rb8
{[%clk 0:01:48.4]} 16. d4 {[%clk 0:01:25.3]} 16... Nxf3+ {[%clk 0:01:47]} 17.
gxf3 {[%clk 0:01:26.2]} 17... Bxa3 {[%clk 0:01:47.4]} 18. Qb3+ {[%clk
0:01:26.5]} 18... Kh8 {[%clk 0:01:47.2]} 19. Qxa3 {[%clk 0:01:26.6]} 19... Bd7
{[%clk 0:01:48.1]} 20. Ne6 {[%clk 0:01:20.9]} 20... Bxe6 {[%clk 0:01:47]} 21.
Qxa7 {[%clk 0:01:13.7]} 21... Bd5 {[%clk 0:01:45.9]} 22. Bg2 {[%clk 0:01:04.1]}
22... g5 {[%clk 0:01:43]} 23. Qc5 {[%clk 0:00:45.8]} 23... Rbd8 {[%clk
0:01:39.1]} 24. e4 {[%clk 0:00:40]} 24... fxe4 {[%clk 0:01:33.5]} 25. fxe4
{[%clk 0:00:40.9]} 25... Rfe8 {[%clk 0:01:33.8]} 26. O-O {[%clk 0:00:39.2]}
26... Bxe4 {[%clk 0:01:33.5]} 27. Bxe4 {[%clk 0:00:40.1]} 27... Rxe4 {[%clk
0:01:34.3]} 28. Qc7 {[%clk 0:00:24.9]} 28... Rde8 {[%clk 0:00:35.5]} 29. Qxg7+
{[%clk 0:00:24.4]} 29... Kxg7 {[%clk 0:00:35.3]} 30. Rc7+ {[%clk 0:00:25.3]}
30... R8e7 {[%clk 0:00:35.9]} 31. b6 {[%clk 0:00:24.6]} 31... Kf7 {[%clk
0:00:33.6]} 32. Rfc1 {[%clk 0:00:24.5]} 32... Rxd4 {[%clk 0:00:32.8]} 33. Rxe7+
{[%clk 0:00:24]} 33... Kxe7 {[%clk 0:00:33.7]} 34. Rc7+ {[%clk 0:00:23.8]} 34...
Rd7 {[%clk 0:00:34]} 35. Rc2 {[%clk 0:00:22.8]} 35... Ke6 {[%clk 0:00:31.7]} 36.
Kg2 {[%clk 0:00:21.1]} 36... Rd6 {[%clk 0:00:31.6]} 37. Rc7 {[%clk 0:00:21.1]}
37... Rxb6 {[%clk 0:00:31.2]} 38. Rxh7 {[%clk 0:00:21.1]} 38... Kf5 {[%clk
0:00:30.9]} 39. h4 {[%clk 0:00:21.3]} 39... g4 {[%clk 0:00:21.8]} 40. h5 {[%clk
0:00:21.2]} 40... Kg5 {[%clk 0:00:19.1]} 41. h6 {[%clk 0:00:17.8]} 41... Kg6
{[%clk 0:00:08.3]} 42. Rh8 {[%clk 0:00:17.7]} 42... f5 {[%clk 0:00:07.3]} 43. h7
{[%clk 0:00:16]} 43... Kg7 {[%clk 0:00:07.5]} 44. Rf8 {[%clk 0:00:15.7]} 44...
Kxh7 {[%clk 0:00:07.6]} 45. Rxf5 {[%clk 0:00:16.3]} 45... Kg6 {[%clk 0:00:08]}
46. Rc5 {[%clk 0:00:15.9]} 46... Rb3 {[%clk 0:00:07.6]} 47. Rd5 {[%clk
0:00:14.2]} 47... b5 {[%clk 0:00:07.7]} 48. Rc5 {[%clk 0:00:14.2]} 48... b4
{[%clk 0:00:08]} 49. Rb5 {[%clk 0:00:14.3]} 49... Kf6 {[%clk 0:00:02.8]} 50. Kf1
{[%clk 0:00:13.3]} 50... Ke6 {[%clk 0:00:02.4]} 51. Ke2 {[%clk 0:00:13.6]} 51...
Kd6 {[%clk 0:00:02.6]} 52. Rg5 {[%clk 0:00:13.6]} 52... Rb2+ {[%clk 0:00:02.7]}
53. Ke3 {[%clk 0:00:13]} 53... b3 {[%clk 0:00:03.6]} 54. Rxg4 {[%clk 0:00:13]}
54... Kc5 {[%clk 0:00:03.7]} 55. Rg8 {[%clk 0:00:12.7]} 55... Rc2 {[%clk
0:00:03]} 56. Rc8+ {[%clk 0:00:12.3]} 56... Kb4 {[%clk 0:00:03.4]} 57. Rb8+
{[%clk 0:00:12.5]} 57... Ka3 {[%clk 0:00:03.3]} 58. f4 {[%clk 0:00:13.3]} 58...
Rc1 {[%clk 0:00:03.4]} 59. Ke4 {[%clk 0:00:13.2]} 59... b2 {[%clk 0:00:02.7]}
60. f5 {[%clk 0:00:13.7]} 60... Rc4+ {[%clk 0:00:03.1]} 61. Ke5 {[%clk
0:00:11.2]} 61... Rb4 {[%clk 0:00:03.2]} 62. Ra8+ {[%clk 0:00:07.6]} 62... Kb3
{[%clk 0:00:03.6]} 63. f6 {[%clk 0:00:07]} 63... b1=Q {[%clk 0:00:03.8]} 64. f7
{[%clk 0:00:07.3]} 64... Qe4+ {[%clk 0:00:04.2]} 65. Kf6 {[%clk 0:00:07.4]}
65... Qxa8 {[%clk 0:00:05.1]} 66. Kg7 {[%clk 0:00:07.3]} 66... Rb7 {[%clk
0:00:05]} 0-1

[Event "*** Titled Tuesday Blitz"]
[Site "Chess.com"]
[Date "2021.04.20"]
[Round "8"]
[White "AryanTari"]
[Black "frederiksvane"]
[Result "1-0"]
[WhiteElo "2895"]
[BlackElo "2758"]
[TimeControl "180+1"]
[EndTime "11:28:22 PDT"]
[Termination "AryanTari won by resignation"]

1. d4 {[%clk 0:03:00.9]} 1... Nf6 {[%clk 0:02:59.6]} 2. Nf3 {[%clk 0:02:58.9]}
2... e6 {[%clk 0:02:51.8]} 3. Bf4 {[%clk 0:02:56]} 3... Bd6 {[%clk 0:02:52]} 4.
e3 {[%clk 0:02:48.6]} 4... O-O {[%clk 0:02:51.8]} 5. Bd3 {[%clk 0:02:43.1]} 5...
b6 {[%clk 0:02:46.4]} 6. O-O {[%clk 0:02:37.8]} 6... Bb7 {[%clk 0:02:46.2]} 7.
a4 {[%clk 0:02:37.1]} 7... Nc6 {[%clk 0:02:41.5]} 8. c3 {[%clk 0:02:34.5]} 8...
Nd5 {[%clk 0:02:31.3]} 9. Bg3 {[%clk 0:02:19.6]} 9... Bxg3 {[%clk 0:02:30.4]}
10. hxg3 {[%clk 0:02:19.3]} 10... f5 {[%clk 0:02:26]} 11. Nbd2 {[%clk
0:02:14.7]} 11... a5 {[%clk 0:02:21.1]} 12. e4 {[%clk 0:02:10.3]} 12... fxe4
{[%clk 0:02:20.3]} 13. Nxe4 {[%clk 0:02:10.3]} 13... Nf6 {[%clk 0:02:18.8]} 14.
Re1 {[%clk 0:02:06]} 14... Nxe4 {[%clk 0:02:18.4]} 15. Bxe4 {[%clk 0:02:05.4]}
15... Qf6 {[%clk 0:02:11]} 16. Qd2 {[%clk 0:01:55.4]} 16... Kh8 {[%clk 0:01:59]}
17. g4 {[%clk 0:01:48.2]} 17... Qf4 {[%clk 0:01:50.6]} 18. Qxf4 {[%clk
0:01:44.2]} 18... Rxf4 {[%clk 0:01:51.5]} 19. g3 {[%clk 0:01:44.6]} 19... Rxe4
{[%clk 0:01:03.4]} 20. Rxe4 {[%clk 0:01:44]} 20... Nb4 {[%clk 0:01:02.5]} 21.
Nd2 {[%clk 0:01:27.9]} 21... Bxe4 {[%clk 0:00:59.9]} 22. Nxe4 {[%clk 0:01:28.8]}
22... Nd5 {[%clk 0:00:54.3]} 23. Kg2 {[%clk 0:01:28]} 23... Kg8 {[%clk
0:00:50.2]} 24. g5 {[%clk 0:01:22.4]} 24... Rf8 {[%clk 0:00:40]} 25. Rh1 {[%clk
0:01:21.1]} 25... Rb8 {[%clk 0:00:38.4]} 26. c4 {[%clk 0:01:10.8]} 26... Nb4
{[%clk 0:00:37.4]} 27. Nc3 {[%clk 0:01:07.6]} 27... c6 {[%clk 0:00:30.9]} 28. b3
{[%clk 0:01:07.2]} 28... Rf8 {[%clk 0:00:24.2]} 29. f4 {[%clk 0:01:04]} 29... d5
{[%clk 0:00:16.9]} 30. Re1 {[%clk 0:00:57.7]} 30... Kf7 {[%clk 0:00:16.6]} 31.
Kf3 {[%clk 0:00:54.9]} 31... Rd8 {[%clk 0:00:11.9]} 32. Rd1 {[%clk 0:00:52.2]}
32... h6 {[%clk 0:00:08]} 33. gxh6 {[%clk 0:00:50.1]} 33... gxh6 {[%clk
0:00:08.9]} 34. g4 {[%clk 0:00:50.1]} 34... Kg6 {[%clk 0:00:08.9]} 35. Ne2
{[%clk 0:00:47.7]} 35... Kf6 {[%clk 0:00:05.6]} 36. Rh1 {[%clk 0:00:45.5]} 36...
Kg6 {[%clk 0:00:05.8]} 37. Rd1 {[%clk 0:00:42.3]} 37... Nc2 {[%clk 0:00:04.8]}
38. Rc1 {[%clk 0:00:36.5]} 38... Nb4 {[%clk 0:00:04.9]} 39. c5 {[%clk
0:00:35.2]} 39... Rb8 {[%clk 0:00:04.1]} 40. cxb6 {[%clk 0:00:32.1]} 40... Rxb6
{[%clk 0:00:04.1]} 41. Rc3 {[%clk 0:00:32.9]} 41... Na2 {[%clk 0:00:03.9]} 42.
Re3 {[%clk 0:00:28.6]} 42... Kf6 {[%clk 0:00:04.3]} 43. Kg3 {[%clk 0:00:24]}
43... Rb7 {[%clk 0:00:04.4]} 44. Kh4 {[%clk 0:00:22.3]} 44... Rb8 {[%clk
0:00:03]} 45. g5+ {[%clk 0:00:20.5]} 45... hxg5+ {[%clk 0:00:02.8]} 46. fxg5+
{[%clk 0:00:21.4]} 46... Kf7 {[%clk 0:00:02.7]} 47. Rf3+ {[%clk 0:00:17.5]}
47... Ke7 {[%clk 0:00:02.9]} 48. g6 {[%clk 0:00:15.4]} 48... Nb4 {[%clk
0:00:02.2]} 49. Rf7+ {[%clk 0:00:12.3]} 49... Kd6 {[%clk 0:00:02]} 50. g7 {[%clk
0:00:08.1]} 50... Rg8 {[%clk 0:00:02.4]} 51. Kg5 {[%clk 0:00:08.5]} 51... e5
{[%clk 0:00:02]} 52. Kg6 {[%clk 0:00:06.7]} 52... exd4 {[%clk 0:00:02]} 53. Nxd4
{[%clk 0:00:06.7]} 53... c5 {[%clk 0:00:02.1]} 54. Nf5+ {[%clk 0:00:05.9]} 54...
Ke5 {[%clk 0:00:02.3]} 55. Re7+ {[%clk 0:00:05.2]} 55... Kf4 {[%clk 0:00:01.8]}
56. Nh6 {[%clk 0:00:05.5]} 56... Rxg7+ {[%clk 0:00:01.6]} 57. Kxg7 {[%clk
0:00:06]} 57... d4 {[%clk 0:00:01.5]} 58. Kf7 {[%clk 0:00:03.7]} 58... d3 {[%clk
0:00:01.6]} 59. Rd7 {[%clk 0:00:04.2]} 59... Ke3 {[%clk 0:00:01.3]} 60. Ng4+
{[%clk 0:00:04.6]} 60... Kf4 {[%clk 0:00:01.6]} 61. Nf2 {[%clk 0:00:04.6]} 61...
Ke3 {[%clk 0:00:02.2]} 62. Nxd3 {[%clk 0:00:04.5]} 62... Nxd3 {[%clk 0:00:03.1]}
63. Ke6 {[%clk 0:00:04.7]} 63... Kd2 {[%clk 0:00:02.9]} 64. Kd5 {[%clk
0:00:03.7]} 64... Kc3 {[%clk 0:00:03.2]} 65. Rb7 {[%clk 0:00:04]} 65... Nb4+
{[%clk 0:00:03.1]} 66. Kxc5 {[%clk 0:00:04.5]} 66... Kxb3 {[%clk 0:00:03.6]} 67.
Kb5 {[%clk 0:00:05.2]} 67... Ka3 {[%clk 0:00:04]} 68. Kxa5 {[%clk 0:00:05.3]}
68... Nc6+ {[%clk 0:00:04.4]} 69. Kb6 {[%clk 0:00:05.8]} 69... Nb4 {[%clk
0:00:02.3]} 70. a5 {[%clk 0:00:06.1]} 70... Nd5+ {[%clk 0:00:02.3]} 71. Kc5
{[%clk 0:00:06.6]} 1-0